fUSD/lending_fUSD_20240718
["ID","MTS","AMOUNT","RATE_DAILY","PERIOD"]
[332539146,1721289093650,-788.04,0.00024657,2]
[332539147,1721289093660,-504.8993303,0.00024657,2]
[332539148,1721289093670,-500.0,0.00024657,2]
[332539149,1721289093680,-1379.71,0.00024657,2]
[332539150,1721289093690,-500.0,0.00024657,2]
[332539151,1721289093700,-591.47,0.00024657,2]
[332539152,1721289093709,-1577.45,0.00024657,2]
[332539153,1721289093718,-976.97,0.00024657,2]
[332539154,1721289093728,-500.0,0.00024657,2]
[332539155,1721289093738,-551.27,0.00024657,2]
[332539156,1721289093747,-500.0,0.00024657,2]
[332539157,1721289093756,-680.83,0.00024657,2]
[332539158,1721289093766,-500.0,0.00024657,2]
[332539159,1721289093775,-500.0,0.00024657,2]
[332539160,1721289093785,-500.0,0.00024657,2]
[332539161,1721289093794,-500.0,0.00024657,2]
[332539162,1721289093804,-899.14,0.00024657,2]
[332539163,1721289093813,-1218.38,0.00024657,2]
[332539164,1721289093825,-500.0,0.00024657,2]
[332539165,1721289093836,-500.0,0.00024657,2]
[332539166,1721289093845,-1331.38,0.00024657,2]
[332539167,1721289093857,-729.11,0.00024657,2]
[332539168,1721289093868,-500.0,0.00024657,2]
[332539169,1721289093877,-500.0,0.00024657,2]
[332539170,1721289093887,-617.19802198,0.00024657,2]
[332539171,1721289093897,-500.0,0.00024657,2]
[332539172,1721289093907,-500.0,0.00024657,2]
[332539173,1721289093916,-1110.47,0.00024657,2]
[332539174,1721289093926,-500.0,0.00024657,2]
[332539175,1721289093935,-928.86,0.00024657,2]
[332539176,1721289093945,-500.0,0.00024657,2]
[332539177,1721289093954,-500.0,0.00024657,2]
[332539178,1721289093966,-2979.69,0.00024657,2]
[332539179,1721289093976,-1387.05,0.00024657,2]
[332539180,1721289093986,-873.23,0.00024657,2]
[332539181,1721289093995,-500.0,0.00024657,2]
[332539182,1721289094005,-1458.28,0.00024657,2]
[332539183,1721289094015,-3460.08,0.00024657,2]
[332539184,1721289094024,-500.0,0.00024657,2]
[332539185,1721289094034,-2193.88,0.00024657,2]
[332539186,1721289094046,-500.0,0.00024657,2]
[332539187,1721289094055,-500.0,0.00024657,2]
[332539188,1721289094065,-500.0,0.00024657,2]
[332539189,1721289094074,-509.19794781,0.00024657,2]
[332539190,1721289094084,-500.0,0.00024657,2]
[332539191,1721289094093,-4972.84,0.00024657,2]
[332539192,1721289094106,-1560.72,0.00024657,15]
[332539193,1721289094115,-698.63,0.00024657,2]
[332539194,1721289094124,-612.57,0.00024657,2]
[332539195,1721289094134,-500.0,0.00024657,2]
[332539196,1721289094143,-605.59,0.00024657,2]
[332539197,1721289094153,-934.59,0.00024657,2]
[332539198,1721289094163,-500.0,0.00024657,2]
[332539199,1721289094173,-500.0,0.00024657,2]
[332539200,1721289094182,-500.0,0.00024657,2]
[332539201,1721289094192,-792.53,0.00024657,2]
[332539202,1721289094203,-698.88,0.00024657,2]
[332539203,1721289094212,-500.0,0.00024657,2]
[332539204,1721289094222,-500.0,0.00024657,2]
[332539205,1721289094231,-500.0,0.00024657,2]
[332539206,1721289094241,-978.79,0.00024657,2]
[332539207,1721289094251,-506.64,0.00024657,2]
[332539208,1721289094261,-500.0,0.00024657,2]
[332539209,1721289094271,-860.45,0.00024657,2]
[332539210,1721289094280,-500.0,0.00024657,2]
[332539211,1721289094290,-552.61,0.00024657,2]
[332539212,1721289094300,-1026.96,0.00024657,2]
[332539213,1721289094309,-500.0,0.00024657,2]
[332539214,1721289094319,-726.27,0.00024657,2]
[332539215,1721289094328,-500.0,0.00024657,2]
[332539216,1721289094338,-3542.28,0.00024657,2]
[332539217,1721289094349,-552.15,0.00024657,2]
[332539218,1721289094358,-733.17,0.00024657,2]
[332539219,1721289094367,-816.94,0.00024657,2]
[332539220,1721289094377,-500.0,0.00024657,2]
[332539221,1721289094387,-816.74,0.00024657,2]
[332539222,1721289094397,-1626.45,0.00024657,2]
[332539223,1721289094407,-500.0,0.00024657,2]
[332539224,1721289094416,-500.0,0.00024657,2]
[332539225,1721289094427,-576.21,0.00024657,2]
[332539226,1721289094436,-631.79,0.00024657,2]
[332539227,1721289094447,-836.01,0.00024657,2]
[332539228,1721289094456,-500.0,0.00024657,2]
[332539229,1721289094466,-672.02,0.00024657,2]
[332539230,1721289094476,-519.28,0.00024657,2]
[332539231,1721289094486,-1562.81,0.00024657,2]
[332539232,1721289094495,-500.0,0.00024657,2]
[332539233,1721289094505,-621.32,0.00024657,2]
[332539234,1721289094516,-500.0,0.00024657,2]
[332539235,1721289094526,-986.48,0.00024657,2]
[332539236,1721289094536,-589.39,0.00024657,2]
[332539237,1721289094546,-500.0,0.00024657,2]
[332539238,1721289094555,-11699.89421077,0.0002475,2]
[332539239,1721289094565,-733.2,0.00024931,2]
[332539240,1721289094574,-500.0,0.00024931,2]
[332539241,1721289094584,-500.0,0.00024931,2]
[332539242,1721289094594,-500.0,0.00024931,2]
[332539243,1721289094604,-500.0,0.00024931,2]
[332539244,1721289094613,-532.26,0.00024931,2]
[332539245,1721289094623,-500.0,0.00024931,2]
[332539246,1721289094633,-500.0,0.00024931,2]
[332539247,1721289094642,-513.28,0.00024931,2]
[332539248,1721289094652,-500.0,0.00024931,2]
[332539249,1721289094662,-500.0,0.00024931,2]
[332539250,1721289094671,-500.0,0.00024931,2]
[332539251,1721289094680,-500.0,0.00024931,2]
[332539252,1721289094690,-509.57384412,0.00024931,2]
[332539253,1721289094699,-500.0,0.00024931,2]
[332539254,1721289094709,-677.24,0.00024931,2]
[332539255,1721289094718,-1022.24,0.00024931,2]
[332539256,1721289094727,-650.1,0.00024931,2]
[332539257,1721289094737,-500.0,0.00024931,2]
[332539258,1721289094747,-500.0,0.00024931,2]
[332539259,1721289094756,-545.06,0.00024931,2]
[332539260,1721289094766,-641.77,0.00024931,2]
[332539261,1721289094776,-500.0,0.00024931,2]
[332539262,1721289094785,-500.0,0.00024931,2]
[332539263,1721289094794,-500.0,0.00024931,2]
[332539264,1721289094804,-840.54,0.00024931,2]
[332539265,1721289094814,-500.0,0.00024931,2]
[332539266,1721289094824,-645.82,0.00024931,2]
[332539267,1721289094833,-500.0,0.00024931,2]
[332539268,1721289094842,-500.0,0.00024931,2]
[332539269,1721289094852,-790.23,0.00024931,2]
[332539270,1721289094862,-500.0,0.00024931,2]
[332539271,1721289094871,-1093.27,0.00024931,2]
[332539272,1721289094881,-500.0,0.00024931,2]
[332539273,1721289094891,-500.0,0.00024931,2]
[332539274,1721289094900,-701.25,0.00024931,2]
[332539275,1721289094910,-1052.53,0.00024931,2]
[332539276,1721289094919,-1419.28,0.00024931,2]
[332539277,1721289094929,-1149.05,0.00024931,2]
[332539278,1721289094938,-1999.69,0.00024931,2]
[332539279,1721289094948,-540.75,0.00024931,2]
[332539280,1721289094959,-1246.32,0.00024931,2]
[332539281,1721289094972,-500.0,0.00024931,2]
[332539282,1721289094982,-500.0,0.00024931,2]
[332539283,1721289094992,-730.94,0.00024931,2]
[332539284,1721289095001,-788.04,0.00024931,2]
[332539285,1721289095012,-500.0,0.00024931,2]
[332539286,1721289095022,-1379.71,0.00024931,2]
[332539287,1721289095032,-500.0,0.00024931,2]
[332539288,1721289095042,-591.47,0.00024931,2]
[332539289,1721289095053,-1577.45,0.00024931,2]
[332539290,1721289095064,-976.97,0.00024931,2]
[332539291,1721289095074,-500.0,0.00024931,2]
[332539292,1721289095083,-551.27,0.00024931,2]
[332539293,1721289095093,-500.0,0.00024931,2]
[332539294,1721289095103,-680.83,0.00024931,2]
[332539295,1721289095112,-500.0,0.00024931,2]
[332539296,1721289095122,-500.0,0.00024931,2]
[332539297,1721289095132,-249.4199982,0.00024931,2]
[332539298,1721289095141,-569.58535992,0.00024931,2]
[332539299,1721289095150,-899.14,0.00024931,2]
[332539300,1721289095160,-1218.38,0.00024931,2]
[332539301,1721289095170,-500.0,0.00024931,2]
[332539302,1721289095180,-500.0,0.00024931,2]
[332539303,1721289095189,-1331.38,0.00024931,2]
[332539304,1721289095199,-729.11,0.00024931,2]
[332539305,1721289095208,-500.0,0.00024931,2]
[332539306,1721289095218,-500.0,0.00024931,2]
[332539307,1721289095227,-500.0,0.00024931,2]
[332539308,1721289095237,-500.0,0.00024931,2]
[332539309,1721289095247,-1110.47,0.00024931,2]
[332539310,1721289095256,-500.0,0.00024931,2]
[332539311,1721289095266,-928.86,0.00024931,2]
[332539312,1721289095276,-500.0,0.00024931,2]
[332539313,1721289095286,-500.0,0.00024931,2]
[332539314,1721289095295,-2979.69,0.00024931,2]
[332539315,1721289095305,-1387.05,0.00024931,2]
[332539316,1721289095314,-873.23,0.00024931,2]
[332539317,1721289095324,-500.0,0.00024931,2]
[332539318,1721289095333,-1458.28,0.00024931,2]
[332539319,1721289095343,-3460.08,0.00024931,2]
[332539320,1721289095353,-351.18072626,0.00024931,2]
[332539321,1721289095362,-2193.88,0.00024931,2]
[332539322,1721289095372,-500.0,0.00024931,2]
[332539323,1721289095381,-500.0,0.00024931,2]
[332539324,1721289095391,-500.0,0.00024931,2]
[332539325,1721289095400,-500.0,0.00024931,2]
[332539326,1721289095409,-4972.84,0.00024931,2]
[332539327,1721289095419,-1560.72,0.00024931,15]
[332539328,1721289095428,-698.63,0.00024931,2]
[332539329,1721289095437,-612.57,0.00024931,2]
[332539330,1721289095446,-500.0,0.00024931,2]
[332539331,1721289095455,-605.59,0.00024931,2]
[332539332,1721289095465,-934.59,0.00024931,2]
[332539333,1721289095474,-500.0,0.00024931,2]
[332539334,1721289095484,-500.0,0.00024931,2]
[332539335,1721289095494,-792.53,0.00024931,2]
[332539336,1721289095503,-698.88,0.00024931,2]
[332539337,1721289095513,-505.42576145,0.00024931,2]
[332539338,1721289095523,-500.0,0.00024931,2]
[332539339,1721289095532,-500.0,0.00024931,2]
[332539340,1721289095541,-978.79,0.00024931,2]
[332539341,1721289095551,-506.64,0.00024931,2]
[332539342,1721289095560,-500.0,0.00024931,2]
[332539343,1721289095569,-860.45,0.00024931,2]
[332539344,1721289095578,-552.61,0.00024931,2]
[332539345,1721289095588,-1026.96,0.00024931,2]
[332539346,1721289095599,-500.0,0.00024931,2]
[332539347,1721289095609,-726.27,0.00024931,2]
[332539348,1721289095618,-500.0,0.00024931,2]
[332539349,1721289095628,-3542.28,0.00024931,2]
[332539350,1721289095637,-552.15,0.00024931,2]
[332539351,1721289095647,-733.17,0.00024931,2]
[332539352,1721289095656,-816.94,0.00024931,2]
[332539353,1721289095666,-500.0,0.00024931,2]
[332539354,1721289095675,-816.74,0.00024931,2]
[332539355,1721289095685,-1626.45,0.00024931,2]
[332539356,1721289095695,-500.0,0.00024931,2]
[332539357,1721289095704,-500.0,0.00024931,2]
[332539358,1721289095714,-576.21,0.00024931,2]
[332539359,1721289095723,-631.79,0.00024931,2]
[332539360,1721289095733,-836.01,0.00024931,2]
[332539361,1721289095742,-500.0,0.00024931,2]
[332539362,1721289095752,-672.02,0.00024931,2]
[332539363,1721289095762,-519.28,0.00024931,2]
[332539364,1721289095772,-1562.81,0.00024931,2]
[332539365,1721289095782,-282.30588129,0.00024931,2]
[332539366,1721289095791,-621.32,0.00024931,2]
[332539367,1721289095801,-301.22151745,0.00024931,2]
[332539368,1721289095811,-986.48,0.00024931,2]
[332539369,1721289095820,-589.39,0.00024931,2]
[332539370,1721289095832,-500.0,0.00024931,2]
[332539371,1721289095841,-155.0,0.00025,2]
[332539372,1721289095852,-932.53156505,0.00025,2]
[332539373,1721289095862,-3658.67517109,0.00025,10]
[332539374,1721289095871,-2000.0,0.00025,2]
[332539375,1721289095880,-2000.0,0.00025,2]
[332539376,1721289095889,-1014.24,0.00025,2]
[332539377,1721289095898,-343.731136,0.00025,2]
[332539378,1721289095908,-720.51945968,0.0002513,2]
[332539379,1721289095918,-151.23259794,0.00025138,2]
[332539380,1721289095929,-2000.0,0.000252,2]
[332539381,1721289095938,-733.2,0.00025205,2]
[332539382,1721289095947,-500.0,0.00025205,2]
[332539383,1721289095957,-506.85057676,0.00025205,2]
[332539384,1721289095970,-500.0,0.00025205,2]
[332539385,1721289095978,-500.0,0.00025205,2]
[332539386,1721289095988,-532.26,0.00025205,2]
[332539387,1721289095997,-500.0,0.00025205,2]
[332539388,1721289096007,-500.0,0.00025205,2]
[332539389,1721289096016,-513.28,0.00025205,2]
[332539390,1721289096025,-500.0,0.00025205,2]
[332539391,1721289096035,-500.0,0.00025205,2]
[332539392,1721289096047,-500.0,0.00025205,2]
[332539393,1721289096056,-500.0,0.00025205,2]
[332539394,1721289096066,-344.68932288,0.00025205,2]
[332539395,1721289096076,-677.24,0.00025205,2]
[332539396,1721289096085,-1022.24,0.00025205,2]
[332539397,1721289096095,-650.1,0.00025205,2]
[332539398,1721289096109,-500.0,0.00025205,2]
[332539399,1721289096119,-500.0,0.00025205,2]
[332539400,1721289096129,-545.06,0.00025205,2]
[332539401,1721289096138,-641.77,0.00025205,2]
[332539402,1721289096148,-500.0,0.00025205,2]
[332539403,1721289096157,-500.0,0.00025205,2]
[332539404,1721289096167,-500.0,0.00025205,2]
[332539405,1721289096176,-840.54,0.00025205,2]
[332539406,1721289096186,-500.0,0.00025205,2]
[332539407,1721289096195,-645.82,0.00025205,2]
[332539408,1721289096204,-500.0,0.00025205,2]
[332539409,1721289096213,-500.0,0.00025205,2]
[332539410,1721289096223,-790.23,0.00025205,2]
[332539411,1721289096233,-500.0,0.00025205,2]
[332539412,1721289096242,-1093.27,0.00025205,2]
[332539413,1721289096252,-500.0,0.00025205,2]
[332539414,1721289096261,-500.0,0.00025205,2]
[332539415,1721289096271,-701.25,0.00025205,2]
[332539416,1721289096281,-1052.53,0.00025205,2]
[332539417,1721289096290,-1419.28,0.00025205,2]
[332539418,1721289096299,-1149.05,0.00025205,2]
[332539419,1721289096309,-1999.69,0.00025205,2]
[332539420,1721289096319,-540.75,0.00025205,2]
[332539421,1721289096328,-1246.32,0.00025205,2]
[332539422,1721289096338,-500.0,0.00025205,2]
[332539423,1721289096347,-570.74812449,0.00025205,2]
[332539424,1721289096359,-730.94,0.00025205,2]
[332539425,1721289096368,-788.04,0.00025205,2]
[332539426,1721289096378,-500.0,0.00025205,2]
[332539427,1721289096387,-1379.71,0.00025205,2]
[332539428,1721289096397,-500.0,0.00025205,2]
[332539429,1721289096407,-591.47,0.00025205,2]
[332539430,1721289096416,-1577.45,0.00025205,2]
[332539431,1721289096426,-976.97,0.00025205,2]
[332539432,1721289096435,-500.0,0.00025205,2]
[332539433,1721289096445,-551.27,0.00025205,2]
[332539434,1721289096454,-500.0,0.00025205,2]
[332539435,1721289096463,-680.83,0.00025205,2]
[332539436,1721289096473,-180.26,0.00025205,2]
[332539437,1721289096482,-500.0,0.00025205,2]
[332539438,1721289096492,-899.14,0.00025205,2]
[332539439,1721289096502,-1218.38,0.00025205,2]
[332539440,1721289096512,-500.0,0.00025205,2]
[332539441,1721289096522,-500.0,0.00025205,2]
[332539442,1721289096531,-1331.38,0.00025205,2]
[332539443,1721289096540,-729.11,0.00025205,2]
[332539444,1721289096550,-500.0,0.00025205,2]
[332539445,1721289096560,-466.28,0.00025205,2]
[332539446,1721289096569,-500.0,0.00025205,2]
[332539447,1721289096578,-500.0,0.00025205,2]
[332539448,1721289096587,-1110.47,0.00025205,2]
[332539449,1721289096597,-500.0,0.00025205,2]
[332539450,1721289096607,-928.86,0.00025205,2]
[332539451,1721289096616,-500.0,0.00025205,2]
[332539452,1721289096626,-500.0,0.00025205,2]
[332539453,1721289096635,-2979.69,0.00025205,2]
[332539454,1721289096645,-1387.05,0.00025205,2]
[332539455,1721289096655,-873.23,0.00025205,2]
[332539456,1721289096664,-500.0,0.00025205,2]
[332539457,1721289096674,-1458.28,0.00025205,2]
[332539458,1721289096683,-3460.08,0.00025205,2]
[332539459,1721289096693,-2193.88,0.00025205,2]
[332539460,1721289096703,-586.4869741,0.00025205,2]
[332539461,1721289096712,-500.0,0.00025205,2]
[332539462,1721289096722,-500.0,0.00025205,2]
[332539463,1721289096732,-500.0,0.00025205,2]
[332539464,1721289096742,-4972.84,0.00025205,2]
[332539465,1721289096751,-1560.72,0.00025205,15]
[332539466,1721289096761,-698.63,0.00025205,2]
[332539467,1721289096771,-612.57,0.00025205,2]
[332539468,1721289096780,-500.0,0.00025205,2]
[332539469,1721289096790,-605.59,0.00025205,2]
[332539470,1721289096800,-934.59,0.00025205,2]
[332539471,1721289096811,-500.0,0.00025205,2]
[332539472,1721289096822,-500.0,0.00025205,2]
[332539473,1721289096831,-792.53,0.00025205,2]
[332539474,1721289096842,-698.88,0.00025205,2]
[332539475,1721289096855,-978.79,0.00025205,2]
[332539476,1721289096865,-506.64,0.00025205,2]
[332539477,1721289096876,-500.0,0.00025205,2]
[332539478,1721289096886,-860.45,0.00025205,2]
[332539479,1721289096896,-552.61,0.00025205,2]
[332539480,1721289096906,-1026.96,0.00025205,2]
[332539481,1721289096917,-500.0,0.00025205,2]
[332539482,1721289096927,-726.27,0.00025205,2]
[332539483,1721289096937,-500.0,0.00025205,2]
[332539484,1721289096948,-3542.28,0.00025205,2]
[332539485,1721289096961,-552.15,0.00025205,2]
[332539486,1721289096974,-733.17,0.00025205,2]
[332539487,1721289096984,-816.94,0.00025205,2]
[332539488,1721289096994,-500.0,0.00025205,2]
[332539489,1721289097005,-816.74,0.00025205,2]
[332539490,1721289097015,-1626.45,0.00025205,2]
[332539491,1721289097025,-500.0,0.00025205,2]
[332539492,1721289097035,-500.0,0.00025205,2]
[332539493,1721289097046,-576.21,0.00025205,2]
[332539494,1721289097057,-631.79,0.00025205,2]
[332539495,1721289097067,-836.01,0.00025205,2]
[332539496,1721289097077,-500.0,0.00025205,2]
[332539497,1721289097087,-672.02,0.00025205,2]
[332539498,1721289097096,-519.28,0.00025205,2]
[332539499,1721289097107,-1562.81,0.00025205,2]
[332539500,1721289097117,-621.32,0.00025205,2]
[332539501,1721289097127,-986.48,0.00025205,2]
[332539502,1721289097136,-589.39,0.00025205,2]
[332539503,1721289097146,-500.0,0.00025205,2]
[332539504,1721289097156,-1000.0,0.00025205,2]
[332539505,1721289097166,-151.38206091,0.00025221,2]
[332539506,1721289097175,-501.4769575,0.00025236,2]
[332539507,1721289097185,-346.82607503,0.00025351,2]
[332539508,1721289097195,-400.0,0.00025414,120]
[332539509,1721289097204,-733.2,0.00025479,2]
[332539510,1721289097214,-500.49909717,0.00025479,2]
[332539511,1721289097224,-507.09271645,0.00025479,2]
[332539512,1721289097233,-432.09279311,0.00025479,2]
[332539513,1721289097243,-532.26,0.00025479,2]
[332539514,1721289097253,-531.16745363,0.00025479,2]
[332539515,1721289097262,-500.0,0.00025479,2]
[332539516,1721289097273,-513.28,0.00025479,2]
[332539517,1721289097282,-509.70266176,0.00025479,2]
[332539518,1721289097291,-500.0,0.00025479,2]
[332539519,1721289097301,-508.81665622,0.00025479,2]
[332539520,1721289097310,-503.45264566,0.00025479,2]
[332539521,1721289097319,-677.24,0.00025479,2]
[332539522,1721289097329,-1022.24,0.00025479,2]
[332539523,1721289097339,-650.1,0.00025479,2]
[332539524,1721289097348,-500.0,0.00025479,2]
[332539525,1721289097358,-500.0,0.00025479,2]
[332539526,1721289097368,-545.06,0.00025479,2]
[332539527,1721289097377,-641.77,0.00025479,2]
[332539528,1721289097505,-500.0,0.00025479,2]
[332539529,1721289097515,-500.0,0.00025479,2]
[332539530,1721289097525,-500.0,0.00025479,2]
[332539531,1721289097535,-840.54,0.00025479,2]
[332539532,1721289097546,-500.0,0.00025479,2]
[332539533,1721289097555,-645.82,0.00025479,2]
[332539534,1721289097565,-499.07747378,0.00025479,2]
[332539535,1721289097574,-790.23,0.00025479,2]
[332539536,1721289097583,-500.0,0.00025479,2]
[332539537,1721289097593,-1093.27,0.00025479,2]
[332539538,1721289097604,-500.0,0.00025479,2]
[332539539,1721289097613,-500.0,0.00025479,2]
[332539540,1721289097623,-701.25,0.00025479,2]
[332539541,1721289097633,-1052.53,0.00025479,2]
[332539542,1721289097642,-1419.28,0.00025479,2]
[332539543,1721289097652,-1149.05,0.00025479,2]
[332539544,1721289097661,-1999.69,0.00025479,2]
[332539545,1721289097671,-540.75,0.00025479,2]
[332539546,1721289097681,-1246.32,0.00025479,2]
[332539547,1721289097691,-500.0,0.00025479,2]
[332539548,1721289097700,-730.94,0.00025479,2]
[332539549,1721289097709,-788.04,0.00025479,2]
[332539550,1721289097719,-500.0,0.00025479,2]
[332539551,1721289097728,-1379.71,0.00025479,2]
[332539552,1721289097738,-500.0,0.00025479,2]
[332539553,1721289097748,-591.47,0.00025479,2]
[332539554,1721289097757,-1577.45,0.00025479,2]
[332539555,1721289097767,-976.97,0.00025479,2]
[332539556,1721289097777,-500.0,0.00025479,2]
[332539557,1721289097786,-551.27,0.00025479,2]
[332539558,1721289097796,-680.83,0.00025479,2]
[332539559,1721289097805,-500.0,0.00025479,2]
[332539560,1721289097815,-500.0,0.00025479,2]
[332539561,1721289097824,-899.14,0.00025479,2]
[332539562,1721289097834,-1218.38,0.00025479,2]
[332539563,1721289097845,-500.0,0.00025479,2]
[332539564,1721289097855,-500.0,0.00025479,2]
[332539565,1721289097864,-1331.38,0.00025479,2]
[332539566,1721289097874,-729.11,0.00025479,2]
[332539567,1721289097885,-500.0,0.00025479,2]
[332539568,1721289097895,-500.0,0.00025479,2]
[332539569,1721289097905,-500.0,0.00025479,2]
[332539570,1721289097915,-1110.47,0.00025479,2]
[332539571,1721289097925,-500.0,0.00025479,2]
[332539572,1721289097936,-928.86,0.00025479,2]
[332539573,1721289097947,-500.0,0.00025479,2]
[332539574,1721289097958,-500.0,0.00025479,2]
[332539575,1721289097971,-2979.69,0.00025479,2]
[332539576,1721289097981,-1387.05,0.00025479,2]
[332539577,1721289097991,-873.23,0.00025479,2]
[332539578,1721289098001,-500.0,0.00025479,2]
[332539579,1721289098013,-1458.28,0.00025479,2]
[332539580,1721289098023,-3460.08,0.00025479,2]
[332539581,1721289098033,-2193.88,0.00025479,2]
[332539582,1721289098043,-500.0,0.00025479,2]
[332539583,1721289098054,-500.0,0.00025479,2]
[332539584,1721289098065,-500.0,0.00025479,2]
[332539585,1721289098075,-4972.84,0.00025479,2]
[332539586,1721289098084,-1560.72,0.00025479,15]
[332539587,1721289098094,-698.63,0.00025479,2]
[332539588,1721289098104,-612.57,0.00025479,2]
[332539589,1721289098114,-500.0,0.00025479,2]
[332539590,1721289098123,-605.59,0.00025479,2]
[332539591,1721289098133,-934.59,0.00025479,2]
[332539592,1721289098143,-500.0,0.00025479,2]
[332539593,1721289098154,-271.92973747,0.00025479,2]
[332539594,1721289098164,-792.53,0.00025479,2]
[332539595,1721289098174,-698.88,0.00025479,2]
[332539596,1721289098184,-978.79,0.00025479,2]
[332539597,1721289098194,-506.64,0.00025479,2]
[332539598,1721289098205,-500.0,0.00025479,2]
[332539599,1721289098215,-860.45,0.00025479,2]
[332539600,1721289098225,-552.61,0.00025479,2]
[332539601,1721289098234,-1026.96,0.00025479,2]
[332539602,1721289098243,-500.0,0.00025479,2]
[332539603,1721289098254,-726.27,0.00025479,2]
[332539604,1721289098263,-500.0,0.00025479,2]
[332539605,1721289098274,-3542.28,0.00025479,2]
[332539606,1721289098283,-552.15,0.00025479,2]
[332539607,1721289098293,-733.17,0.00025479,2]
[332539608,1721289098303,-816.94,0.00025479,2]
[332539609,1721289098312,-219.65354205,0.00025479,2]
[332539610,1721289098322,-816.74,0.00025479,2]
[332539611,1721289098331,-1626.45,0.00025479,2]
[332539612,1721289098341,-500.0,0.00025479,2]
[332539613,1721289098351,-500.0,0.00025479,2]
[332539614,1721289098361,-576.21,0.00025479,2]
[332539615,1721289098371,-631.79,0.00025479,2]
[332539616,1721289098380,-836.01,0.00025479,2]
[332539617,1721289098389,-500.0,0.00025479,2]
[332539618,1721289098399,-672.02,0.00025479,2]
[332539619,1721289098408,-519.28,0.00025479,2]
[332539620,1721289098417,-1562.81,0.00025479,2]
[332539621,1721289098426,-621.32,0.00025479,2]
[332539622,1721289098436,-986.48,0.00025479,2]
[332539623,1721289098445,-589.39,0.00025479,2]
[332539624,1721289098455,-240.24633449,0.00025479,2]
[332539625,1721289098464,-1413.0,0.000257,2]
[332539626,1721289098473,-160.06982044,0.0002574,2]
[332539627,1721289098482,-733.2,0.00025753,2]
[332539628,1721289098492,-532.26,0.00025753,2]
[332539629,1721289098501,-503.05908341,0.00025753,2]
[332539630,1721289098510,-513.28,0.00025753,2]
[332539631,1721289098519,-500.0,0.00025753,2]
[332539632,1721289098528,-677.24,0.00025753,2]
[332539633,1721289098539,-1022.24,0.00025753,2]
[332539634,1721289098547,-650.1,0.00025753,2]
[332539635,1721289098558,-500.0,0.00025753,2]
[332539636,1721289098570,-545.06,0.00025753,2]
[332539637,1721289098582,-641.77,0.00025753,2]
[332539638,1721289098594,-500.0,0.00025753,2]
[332539639,1721289098605,-500.0,0.00025753,2]
[332539640,1721289098615,-840.54,0.00025753,2]
[332539641,1721289098624,-500.0,0.00025753,2]
[332539642,1721289098633,-645.82,0.00025753,2]
[332539643,1721289098643,-790.23,0.00025753,2]
[332539644,1721289098652,-500.0,0.00025753,2]
[332539645,1721289098662,-1093.27,0.00025753,2]